fUSD/lending_fUSD_20240624
["ID","MTS","AMOUNT","RATE_DAILY","PERIOD"]
[330254821,1719211851002,-500.0,0.00019178,2]
[330254822,1719211851012,-500.0,0.00019178,2]
[330254823,1719211851021,-500.0,0.00019178,2]
[330254824,1719211851032,-500.0,0.00019178,2]
[330254825,1719211851042,-500.0,0.00019178,2]
[330254826,1719211851051,-500.0,0.00019178,2]
[330254827,1719211851061,-500.0,0.00019178,2]
[330254828,1719211851072,-500.0,0.00019178,2]
[330254829,1719211851081,-466.03980446,0.00019178,2]
[330254830,1719211851091,-500.0,0.00019178,2]
[330254831,1719211851101,-500.0,0.00019178,2]
[330254832,1719211851111,-500.0,0.00019178,2]
[330254833,1719211851120,-500.0,0.00019178,2]
[330254834,1719211851130,-500.0,0.00019178,2]
[330254835,1719211851140,-500.0,0.00019178,2]
[330254836,1719211851150,-497.02918034,0.00019178,2]
[330254837,1719211851160,-500.0,0.00019178,2]
[330254838,1719211851169,-500.0,0.00019178,2]
[330254839,1719211851179,-500.0,0.00019178,2]
[330254840,1719211851188,-500.0,0.00019178,2]
[330254841,1719211851198,-500.0,0.00019178,2]
[330254842,1719211851207,-883.07,0.00019178,2]
[330254843,1719211851217,-500.0,0.00019178,2]
[330254844,1719211851226,-500.0,0.00019178,2]
[330254845,1719211851236,-621.95114292,0.00019178,2]
[330254846,1719211851245,-500.0,0.00019178,2]
[330254847,1719211851254,-500.0,0.00019178,2]
[330254848,1719211851265,-500.0,0.00019178,2]
[330254849,1719211851275,-500.0,0.00019178,2]
[330254850,1719211851284,-500.0,0.00019178,2]
[330254851,1719211851294,-500.0,0.00019178,2]
[330254852,1719211851303,-500.0,0.00019178,2]
[330254853,1719211851312,-500.0,0.00019178,2]
[330254854,1719211851322,-500.0,0.00019178,2]
[330254855,1719211851331,-529.44780419,0.00019178,2]
[330254856,1719211851340,-526.57,0.00019178,2]
[330254857,1719211851349,-500.0,0.00019178,2]
[330254858,1719211851359,-473.78478849,0.00019178,2]
[330254859,1719211851368,-500.0,0.00019178,2]
[330254860,1719211851377,-500.0,0.00019178,2]
[330254861,1719211851387,-500.0,0.00019178,2]
[330254862,1719211851396,-500.0,0.00019178,2]
[330254863,1719211851406,-500.0,0.00019178,2]
[330254864,1719211851415,-500.0,0.00019178,2]
[330254865,1719211851424,-500.0,0.00019178,2]
[330254866,1719211851434,-500.0,0.00019178,2]
[330254867,1719211851443,-500.0,0.00019178,2]
[330254868,1719211851452,-292.36549139,0.00019178,2]
[330254869,1719211851461,-500.0,0.00019178,2]
[330254870,1719211851471,-500.0,0.00019178,2]
[330254871,1719211851480,-500.0,0.00019178,2]
[330254872,1719211851489,-500.0,0.00019178,2]
[330254873,1719211851498,-500.0,0.00019178,2]
[330254874,1719211851507,-594.42461261,0.00019178,2]
[330254875,1719211851516,-500.0,0.00019178,2]
[330254876,1719211851526,-500.0,0.00019178,2]
[330254877,1719211851535,-531.71,0.00019178,2]
[330254878,1719211851545,-500.0,0.00019178,2]
[330254879,1719211851555,-500.0,0.00019178,2]
[330254880,1719211851564,-500.0,0.00019178,2]
[330254881,1719211851573,-500.0,0.00019178,2]
[330254882,1719211851582,-500.0,0.00019178,2]
[330254883,1719211851591,-500.0,0.00019178,2]
[330254884,1719211851600,-511.2343539,0.00019178,2]
[330254885,1719211851609,-500.0,0.00019178,2]
[330254886,1719211851618,-500.0,0.00019178,2]
[330254887,1719211851626,-500.0,0.00019178,2]
[330254888,1719211851636,-500.0,0.00019178,2]
[330254889,1719211851645,-500.0,0.00019178,2]
[330254890,1719211851654,-500.0,0.00019178,2]
[330254891,1719211851663,-500.0,0.00019178,2]
[330254892,1719211851672,-503.99364297,0.00019178,2]
[330254893,1719211851681,-500.0,0.00019178,2]
[330254894,1719211851690,-500.0,0.00019178,2]
[330254895,1719211851699,-500.0,0.00019178,2]
[330254896,1719211851708,-500.0,0.00019178,2]
[330254897,1719211851717,-500.0,0.00019178,2]
[330254898,1719211851726,-500.0,0.00019178,2]
[330254899,1719211851735,-495.73506663,0.00019178,2]
[330254900,1719211851744,-500.0,0.00019178,2]
[330254901,1719211851754,-500.0,0.00019178,2]
[330254902,1719211851763,-500.0,0.00019178,2]
[330254903,1719211851772,-500.0,0.00019178,2]
[330254904,1719211851782,-523.34158137,0.00019178,2]
[330254905,1719211851793,-500.0,0.00019178,2]
[330254906,1719211851805,-500.0,0.00019178,2]
[330254907,1719211851814,-500.0,0.00019178,2]
[330254908,1719211851825,-500.0,0.00019178,2]
[330254909,1719211851835,-5787.1815764,0.00019178,2]
[330254910,1719211851850,-2956.9084236,0.00019178,2]
[330254911,1719211851859,-500.0,0.00019178,2]
[330254912,1719211851869,-500.0,0.00019178,2]
[330254913,1719211851880,-500.0,0.00019178,2]
[330254914,1719211851890,-500.0,0.00019178,2]
[330254915,1719211851899,-500.0,0.00019178,2]
[330254916,1719211851908,-382.60957653,0.00019178,2]
[330254917,1719211851920,-117.39042347,0.00019178,2]
[330254918,1719211851929,-692.14,0.00019178,2]
[330254919,1719211851938,-500.0,0.00019178,2]
[330254920,1719211851947,-0.46723115,0.00019178,2]
[330254921,1719211851959,-387.7,0.00019178,2]
[330254922,1719211851971,-111.83276885,0.00019178,2]
[330254923,1719211851980,-594.88609467,0.00019178,2]
[330254924,1719211851990,-250.11297574,0.00019178,2]
[330254925,1719211852001,-249.88702426,0.00019178,2]
[330254926,1719211852010,-60.11514574,0.00019178,2]
[330254927,1719211852021,-448.53121135,0.00019178,2]
[330254928,1719211852031,-500.0,0.00019178,2]
[330254929,1719211852041,-500.0,0.00019178,2]
[330254930,1719211852050,-723.89,0.00019178,2]
[330254931,1719211852059,-500.0,0.00019178,2]
[330254932,1719211852068,-500.0,0.00019178,2]
[330254933,1719211852077,-500.0,0.00019178,2]
[330254934,1719211852087,-500.0,0.00019178,2]
[330254935,1719211852096,-602.98616616,0.00019178,2]
[330254936,1719211852106,-500.0,0.00019178,2]
[330254937,1719211852115,-552.61382408,0.00019178,2]
[330254938,1719211852125,-500.0,0.00019178,2]
[330254939,1719211852134,-500.0,0.00019178,2]
[330254940,1719211852143,-451.41364952,0.00019178,2]
[330254941,1719211852155,-389.69635048,0.00019178,2]
[330254942,1719211852164,-104.00796131,0.00019178,2]
[330254943,1719211852175,-3750.90111708,0.00019178,2]
[330254944,1719211922578,-467.5535,0.000139,2]
[330254945,1719211922614,-163.62241647,0.00016043,2]
[330254946,1719211922659,-631.17591647,0.00016043,2]
[330254947,1719211922726,-93.14098832,0.00016043,2]
[330254948,1719211922756,-150.0,0.00018603,2]
[330254949,1719211922785,-158.47,0.00018662,2]
[330254950,1719211922827,-229.56492815,0.00018769,2]
[330254951,1719211922932,-20.43507185,0.00018769,2]
[330254952,1719211922964,-150.0,0.00018777,2]
[330254953,1719211922995,-89.13231603,0.00018777,2]
[330254954,1719211923035,-210.86768397,0.00018777,2]
[330254955,1719211923066,-420.3082325,0.00018778,2]
[330254956,1719211923124,-631.17591647,0.00018778,2]
[330254957,1719211923174,-550.3918702,0.00018778,2]
[330254959,1719211995080,200.0,0.00025913,120]
[330254960,1719211998436,1000.0,0.00025913,120]
[330254961,1719212001554,200.0,0.00025808,120]
[330254963,1719212180281,8486.12203132,0.00026,120]
[330254968,1719212947523,-150.0,0.00013799,2]
[330254969,1719212947554,-150.0,0.00013799,2]
[330254970,1719212947584,-410.49269328,0.000138,2]
[330254971,1719212947617,-360.43121089,0.000138,2]
[330255010,1719213032892,-281.5182,0.00013699,2]
[330255011,1719213032903,-1000.0,0.00013999,5]
[330255012,1719213032915,-271.92977844,0.00013999,5]
[330255013,1719213032926,-348.83,0.00015064,2]
[330255014,1719213032937,-155.49943837,0.00016727,2]
[330255015,1719213032948,-155.72904753,0.00016727,2]
[330255016,1719213032960,-5.82764762,0.00016922,2]
[330255017,1719213034275,-194.17235238,0.00016922,2]
[330255018,1719213034286,-22278.12,0.00016952,2]
[330255019,1719213034297,-2751.0,0.00016977,2]
[330255020,1719213034308,-455.23,0.00016999,2]
[330255021,1719213034318,-250.0,0.00017002,2]
[330255022,1719213034329,-1112.64,0.0001704,2]
[330255023,1719213034339,-200.0,0.00017166,2]
[330255024,1719213034350,-670.11,0.00017312,5]
[330255025,1719213034362,-348.83,0.00017328,2]
[330255026,1719213034372,-3306.25,0.00017387,2]
[330255027,1719213034384,-1603.74,0.00017431,2]
[330255028,1719213034395,-299.99,0.00017431,4]
[330255029,1719213034406,-1000.0,0.00017443,2]
[330255030,1719213034416,-406.89,0.00017492,2]
[330255031,1719213034427,-185.6,0.00017514,2]
[330255032,1719213034438,-406.89,0.0001754,2]
[330255033,1719213034449,-406.89,0.00017588,2]
[330255034,1719213034459,-250.0,0.00017631,2]
[330255035,1719213034470,-406.89,0.00017636,2]
[330255036,1719213034481,-183.16,0.00017642,2]
[330255037,1719213034492,-7227.12,0.00017668,2]
[330255038,1719213034503,-166.73,0.0001767,2]
[330255039,1719213034513,-406.89,0.00017684,2]
[330255040,1719213034524,-406.89,0.00017732,2]
[330255041,1719213034534,-406.89,0.0001778,2]
[330255042,1719213034545,-406.89,0.00017828,2]
[330255043,1719213034555,-406.89,0.00017876,2]
[330255044,1719213034565,-406.89,0.00017924,2]
[330255045,1719213034576,-406.89,0.00017972,2]
[330255046,1719213034586,-406.89,0.0001802,2]
[330255047,1719213034597,-406.89,0.00018068,2]
[330255048,1719213034607,-406.89,0.00018116,2]
[330255049,1719213034618,-406.89,0.00018164,2]
[330255050,1719213034628,-406.89,0.00018212,2]
[330255051,1719213034638,-406.89,0.0001826,2]
[330255052,1719213034648,-406.89,0.00018308,2]
[330255053,1719213034659,-406.89,0.00018356,2]
[330255054,1719213034669,-406.89,0.00018404,2]
[330255055,1719213034680,-11888.14,0.00018533,2]
[330255056,1719213034690,-167.19,0.00018567,2]
[330255057,1719213034700,-532.71676313,0.00018599,2]
[330255058,1719213034711,-155.0,0.00018777,2]
[330255059,1719213034721,-296.51463104,0.00018806,2]
[330255060,1719213034731,-368.47136735,0.00018924,2]
[330255061,1719213034742,-321.49640146,0.00018977,2]
[330255062,1719213034753,-397.72743452,0.00018978,2]
[330255063,1719213034763,-600.86530193,0.00018999,2]
[330255064,1719213034774,-155.0,0.00019049,2]
[330255065,1719213034784,-450.15761108,0.00019049,2]
[330255066,1719213034795,-130025.30569177,0.0001905,2]
[330255067,1719213034805,-175.62575415,0.00019078,2]
[330255068,1719213034815,-193.2637923,0.00019078,2]
[330255069,1719213034825,-663.32199851,0.00019078,2]
[330255070,1719213034836,-154.8784338,0.00019078,2]
[330255071,1719213034846,-1254.9484,0.00019078,2]
[330255072,1719213034856,-176.45216287,0.00019138,2]
[330255073,1719213034866,-444.75,0.00019168,2]
[330255074,1719213034877,-444.75,0.00019168,2]
[330255075,1719213034887,-444.75,0.00019168,2]
[330255076,1719213034898,-444.75,0.00019168,2]
[330255077,1719213034908,-500.0,0.00019178,2]
[330255078,1719213034918,-502.38412624,0.00019178,2]
[330255079,1719213034928,-500.0,0.00019178,2]
[330255080,1719213034939,-500.0,0.00019178,2]
[330255081,1719213034949,-500.0,0.00019178,2]
[330255082,1719213034960,-500.0,0.00019178,2]
[330255083,1719213034971,-500.0,0.00019178,2]
[330255084,1719213034981,-500.0,0.00019178,2]
[330255085,1719213034994,-500.0,0.00019178,2]
[330255086,1719213035004,-634.99720748,0.00019178,2]
[330255087,1719213035019,-649.0939423,0.00019178,2]
[330255088,1719213035031,-500.0,0.00019178,2]
[330255089,1719213035041,-500.0,0.00019178,2]
[330255090,1719213035052,-637.19511725,0.00019178,2]
[330255091,1719213035062,-500.0,0.00019178,2]
[330255092,1719213035073,-500.0,0.00019178,2]
[330255093,1719213035084,-500.0,0.00019178,2]
[330255094,1719213035095,-500.0,0.00019178,2]
[330255095,1719213035106,-500.0,0.00019178,2]
[330255096,1719213035117,-500.0,0.00019178,2]
[330255097,1719213035128,-500.0,0.00019178,2]
[330255098,1719213035140,-500.0,0.00019178,2]
[330255099,1719213035152,-336.91148652,0.00019178,2]
[330255100,1719213035163,-500.0,0.00019178,2]
[330255101,1719213035175,-561.59460687,0.00019178,2]
[330255102,1719213035189,-502.06823608,0.00019178,2]
[330255103,1719213035200,-500.0,0.00019178,2]
[330255104,1719213035211,-541.4,0.00019178,2]
[330255105,1719213035224,-500.0,0.00019178,2]
[330255106,1719213035237,-500.0,0.00019178,2]
[330255107,1719213035247,-500.0,0.00019178,2]
[330255108,1719213035259,-500.0,0.00019178,2]
[330255109,1719213035270,-500.0,0.00019178,2]
[330255110,1719213035281,-500.0,0.00019178,2]
[330255111,1719213035291,-500.0,0.00019178,2]
[330255112,1719213035302,-500.0,0.00019178,2]
[330255113,1719213035313,-510.13055163,0.00019178,2]
[330255114,1719213035324,-500.76199992,0.00019178,2]
[330255115,1719213035335,-500.0,0.00019178,2]
[330255116,1719213035345,-500.0,0.00019178,2]
[330255117,1719213035356,-500.0,0.00019178,2]
[330255118,1719213035367,-555.31846216,0.00019178,2]
[330255119,1719213035378,-503.51396001,0.00019178,2]
[330255120,1719213035389,-150.61896747,0.00019178,2]
[330255121,1719213035399,-500.0,0.00019178,2]
[330255122,1719213035410,-500.0,0.00019178,2]
[330255123,1719213035420,-596.10463252,0.00019178,2]
[330255124,1719213035430,-629.57312381,0.00019178,2]
[330255125,1719213035447,-500.0,0.00019178,2]
[330255126,1719213035458,-500.0,0.00019178,2]
[330255127,1719213035468,-151.0,0.00019178,2]
[330255128,1719213035479,-1000.641176,0.00019178,2]
[330255129,1719213035490,-151.0,0.00019178,2]
[330255130,1719213035501,-500.0,0.00019178,2]
[330255131,1719213035512,-500.0,0.00019178,2]
[330255132,1719213035523,-500.0,0.00019178,2]
[330255133,1719213035534,-643.65,0.00019178,2]
[330255134,1719213035545,-500.0,0.00019178,2]
[330255135,1719213035555,-500.0,0.00019178,2]
[330255136,1719213035566,-572.17072395,0.00019178,2]
[330255137,1719213035576,-500.0,0.00019178,2]
[330255138,1719213035587,-500.0,0.00019178,2]
[330255139,1719213035598,-500.0,0.00019178,2]
[330255140,1719213035609,-500.0,0.00019178,2]
[330255141,1719213035620,-500.0,0.00019178,2]
[330255142,1719213035631,-500.0,0.00019178,2]
[330255143,1719213035642,-500.0,0.00019178,2]
[330255144,1719213035653,-500.0,0.00019178,2]
[330255145,1719213035664,-838.69,0.00019178,2]
[330255146,1719213035675,-250.0,0.00019178,2]
[330255147,1719213035686,-500.0,0.00019178,2]
[330255148,1719213035697,-500.0,0.00019178,2]
[330255149,1719213035708,-500.0,0.00019178,2]
[330255150,1719213035720,-500.0,0.00019178,2]
[330255151,1719213035730,-500.0,0.00019178,2]
[330255152,1719213035740,-500.0,0.00019178,2]
[330255153,1719213035749,-500.0,0.00019178,2]
[330255154,1719213036212,-500.0,0.00019178,2]
[330255155,1719213036236,-500.0,0.00019178,2]
[330255156,1719213036251,-500.0,0.00019178,2]
[330255157,1719213036261,-500.0,0.00019178,2]
[330255158,1719213036273,-500.0,0.00019178,2]
[330255159,1719213036284,-500.0,0.00019178,2]
[330255160,1719213036293,-500.0,0.00019178,2]
[330255161,1719213036303,-543.87784206,0.00019178,2]
[330255162,1719213036312,-310.39058456,0.00019178,2]
[330255163,1719213036322,-500.0,0.00019178,2]
[330255164,1719213036332,-640.68831602,0.00019178,2]
[330255165,1719213036341,-500.0,0.00019178,2]
[330255166,1719213036350,-439.78563794,0.00019178,2]
[330255167,1719213036360,-500.0,0.00019178,2]
[330255168,1719213036369,-247.17753286,0.00019178,2]
[330255169,1719213036379,-500.0,0.00019178,2]
[330255170,1719213036388,-500.0,0.00019178,2]
[330255171,1719213036397,-500.0,0.00019178,2]
[330255172,1719213036407,-583.80244313,0.00019178,2]
[330255173,1719213036417,-500.0,0.00019178,2]
[330255174,1719213036427,-500.0,0.00019178,2]
[330255175,1719213036436,-500.0,0.00019178,2]
[330255176,1719213036446,-500.0,0.00019178,2]
[330255177,1719213036455,-500.0,0.00019178,2]
[330255178,1719213036463,-500.0,0.00019178,2]
[330255179,1719213036473,-433.94367725,0.00019178,2]
[330255180,1719213036482,-500.0,0.00019178,2]
[330255181,1719213036493,-500.0,0.00019178,2]
[330255182,1719213036502,-500.0,0.00019178,2]
[330255183,1719213036511,-500.0,0.00019178,2]
[330255184,1719213036520,-500.0,0.00019178,2]
[330255185,1719213036530,-500.0,0.00019178,2]
[330255186,1719213036540,-544.7239364,0.00019178,2]
[330255187,1719213036549,-158.1589198,0.00019178,2]
[330255188,1719213036558,-500.0,0.00019178,2]
[330255189,1719213036568,-500.0,0.00019178,2]
[330255190,1719213036577,-500.0,0.00019178,2]
[330255191,1719213036586,-500.0,0.00019178,2]
[330255192,1719213036596,-153.15227733,0.00019178,2]
[330255193,1719213036605,-500.0,0.00019178,2]
[330255194,1719213036614,-155.0,0.00019178,2]
[330255195,1719213036624,-500.0,0.00019178,2]
[330255196,1719213036634,-500.0,0.00019178,2]
[330255197,1719213036643,-500.0,0.00019178,2]
[330255198,1719213036652,-500.0,0.00019178,2]
[330255199,1719213036662,-500.0,0.00019178,2]
[330255200,1719213036671,-500.0,0.00019178,2]
[330255201,1719213036680,-500.0,0.00019178,2]
[330255202,1719213036689,-500.0,0.00019178,2]
[330255203,1719213036698,-500.0,0.00019178,2]
[330255204,1719213036707,-500.0,0.00019178,2]
[330255205,1719213036717,-500.0,0.00019178,2]
[330255206,1719213036726,-500.0,0.00019178,2]
[330255207,1719213036736,-456.2165383,0.00019178,2]
[330255208,1719213036746,-500.0,0.00019178,2]
[330255209,1719213036755,-500.0,0.00019178,2]
[330255210,1719213036764,-500.0,0.00019178,2]
[330255211,1719213036773,-500.0,0.00019178,2]
[330255212,1719213036781,-500.0,0.00019178,2]
[330255213,1719213036790,-500.0,0.00019178,2]
[330255214,1719213036799,-151.423684,0.00019178,2]
[330255215,1719213036808,-500.0,0.00019178,2]
[330255216,1719213036818,-500.0,0.00019178,2]
[330255217,1719213036827,-500.0,0.00019178,2]
[330255218,1719213036836,-500.0,0.00019178,2]
[330255219,1719213036845,-500.0,0.00019178,2]
[330255220,1719213036855,-500.0,0.00019178,2]
[330255221,1719213036864,-500.0,0.00019178,2]
[330255222,1719213036873,-500.0,0.00019178,2]
[330255223,1719213036883,-500.0,0.00019178,2]
[330255224,1719213036892,-500.0,0.00019178,2]
[330255225,1719213036901,-304.98915007,0.00019178,2]
[330255226,1719213036911,-500.0,0.00019178,2]
[330255227,1719213036920,-500.0,0.00019178,2]
[330255228,1719213036929,-500.0,0.00019178,2]
[330255229,1719213036939,-500.0,0.00019178,2]
[330255230,1719213036948,-500.0,0.00019178,2]
[330255231,1719213036958,-500.0,0.00019178,2]
[330255232,1719213036967,-500.0,0.00019178,2]
[330255233,1719213036976,-500.0,0.00019178,2]
[330255234,1719213036986,-500.0,0.00019178,2]
[330255235,1719213036996,-500.0,0.00019178,2]
[330255236,1719213037005,-500.0,0.00019178,2]
[330255237,1719213037015,-500.0,0.00019178,2]
[330255238,1719213037025,-500.0,0.00019178,2]
[330255239,1719213037034,-502.53773773,0.00019178,2]
[330255240,1719213037043,-500.0,0.00019178,2]
[330255241,1719213037053,-500.0,0.00019178,2]
[330255242,1719213037062,-500.0,0.00019178,2]
[330255243,1719213037073,-500.0,0.00019178,2]
[330255244,1719213037082,-500.0,0.00019178,2]
[330255245,1719213037091,-500.0,0.00019178,2]
[330255246,1719213037101,-504.63,0.00019178,2]
[330255247,1719213037112,-500.0,0.00019178,2]
[330255248,1719213037122,-500.0,0.00019178,2]
[330255249,1719213037131,-500.0,0.00019178,2]
[330255250,1719213037141,-500.0,0.00019178,2]
[330255251,1719213037150,-500.0,0.00019178,2]
[330255252,1719213037160,-500.0,0.00019178,2]
[330255253,1719213037169,-500.0,0.00019178,2]
[330255254,1719213037179,-500.0,0.00019178,2]
[330255255,1719213037193,-500.0,0.00019178,2]
[330255256,1719213037202,-500.0,0.00019178,2]
[330255257,1719213037211,-500.0,0.00019178,2]
[330255258,1719213037222,-500.0,0.00019178,2]
[330255259,1719213037231,-500.0,0.00019178,2]
[330255260,1719213037242,-500.0,0.00019178,2]
[330255261,1719213037251,-500.0,0.00019178,2]
[330255262,1719213037263,-500.0,0.00019178,2]
[330255263,1719213037272,-846.27,0.00019178,2]
[330255264,1719213037282,-500.0,0.00019178,2]
[330255265,1719213037292,-500.0,0.00019178,2]
[330255266,1719213037301,-500.0,0.00019178,2]
[330255267,1719213037310,-500.0,0.00019178,2]
[330255268,1719213037319,-500.0,0.00019178,2]
[330255269,1719213037329,-500.0,0.00019178,2]
[330255270,1719213037338,-500.0,0.00019178,2]
[330255271,1719213037347,-500.0,0.00019178,2]
[330255272,1719213037357,-151.0,0.00019178,2]
[330255273,1719213037366,-500.0,0.00019178,2]
[330255274,1719213037376,-500.0,0.00019178,2]
[330255275,1719213037385,-500.0,0.00019178,2]
[330255276,1719213037395,-500.0,0.00019178,2]
[330255277,1719213037408,-500.0,0.00019178,2]
[330255278,1719213037418,-151.0,0.00019178,2]
[330255279,1719213037427,-500.0,0.00019178,2]
[330255280,1719213037437,-500.0,0.00019178,2]
[330255281,1719213037446,-500.0,0.00019178,2]
[330255282,1719213037455,-478.75154249,0.00019178,2]
[330255283,1719213037465,-500.0,0.00019178,2]
[330255284,1719213037475,-500.0,0.00019178,2]
[330255285,1719213037485,-500.0,0.00019178,2]
[330255286,1719213037495,-164.855851,0.00019178,2]
[330255287,1719213037505,-500.0,0.00019178,2]
[330255288,1719213037515,-500.0,0.00019178,2]
[330255289,1719213037524,-500.0,0.00019178,2]
[330255290,1719213037534,-500.0,0.00019178,2]
[330255291,1719213037544,-500.0,0.00019178,2]
[330255292,1719213037554,-500.0,0.00019178,2]
[330255293,1719213037563,-500.0,0.00019178,2]
[330255294,1719213037573,-500.0,0.00019178,2]
[330255295,1719213037582,-500.0,0.00019178,2]
[330255296,1719213037592,-501.09661243,0.00019178,2]
[330255297,1719213037601,-500.0,0.00019178,2]
[330255298,1719213037611,-500.0,0.00019178,2]
[330255299,1719213037620,-500.0,0.00019178,2]
[330255300,1719213037630,-500.0,0.00019178,2]
[330255301,1719213037640,-500.0,0.00019178,2]
[330255302,1719213037650,-500.0,0.00019178,2]
[330255303,1719213037659,-500.0,0.00019178,2]
[330255304,1719213037669,-168.09892284,0.00019178,2]
[330255305,1719213037678,-500.0,0.00019178,2]
[330255306,1719213037688,-500.0,0.00019178,2]
[330255307,1719213037697,-500.0,0.00019178,2]
[330255308,1719213037707,-500.0,0.00019178,2]
[330255309,1719213037716,-500.0,0.00019178,2]
[330255310,1719213037726,-500.0,0.00019178,2]
[330255311,1719213037735,-500.0,0.00019178,2]
[330255312,1719213037746,-500.0,0.00019178,2]
[330255313,1719213037755,-500.0,0.00019178,2]
[330255314,1719213037765,-500.0,0.00019178,2]
[330255315,1719213037774,-500.0,0.00019178,2]
[330255316,1719213037784,-500.0,0.00019178,2]
[330255317,1719213037793,-581.60455591,0.00019178,2]
[330255318,1719213037802,-500.0,0.00019178,2]
[330255319,1719213037812,-500.0,0.00019178,2]
[330255320,1719213037822,-500.0,0.00019178,2]
[330255321,1719213037833,-500.0,0.00019178,2]
[330255322,1719213037842,-500.0,0.00019178,2]
[330255323,1719213037852,-500.0,0.00019178,2]
[330255324,1719213037861,-560.29801169,0.00019178,2]
[330255325,1719213037871,-500.0,0.00019178,2]
[330255326,1719213037880,-500.0,0.00019178,2]
[330255327,1719213037890,-500.0,0.00019178,2]
[330255328,1719213037900,-500.0,0.00019178,2]
[330255329,1719213037910,-151.0,0.00019178,2]
[330255330,1719213037920,-500.0,0.00019178,2]
[330255331,1719213037929,-500.0,0.00019178,2]
[330255332,1719213037939,-500.0,0.00019178,2]
[330255333,1719213037949,-500.0,0.00019178,2]
[330255334,1719213037959,-500.0,0.00019178,2]
[330255335,1719213037969,-500.0,0.00019178,2]
[330255336,1719213037979,-500.0,0.00019178,2]
[330255337,1719213037991,-500.0,0.00019178,2]
[330255338,1719213038001,-500.0,0.00019178,2]
[330255339,1719213038012,-151.0,0.00019178,2]
[330255340,1719213038022,-500.0,0.00019178,2]
[330255341,1719213038035,-500.0,0.00019178,2]
[330255342,1719213038046,-500.0,0.00019178,2]
[330255343,1719213038056,-500.0,0.00019178,2]
[330255344,1719213038066,-500.0,0.00019178,2]
[330255345,1719213038076,-500.0,0.00019178,2]
[330255346,1719213038085,-500.0,0.00019178,2]
[330255347,1719213038095,-500.0,0.00019178,2]
[330255348,1719213038105,-500.0,0.00019178,2]
[330255349,1719213038115,-500.0,0.00019178,2]
[330255350,1719213038125,-500.0,0.00019178,2]
[330255351,1719213038135,-234.24638516,0.00019178,2]
[330255352,1719213038145,-500.88168828,0.00019178,2]
[330255353,1719213038154,-500.0,0.00019178,2]
[330255354,1719213038164,-500.0,0.00019178,2]
[330255355,1719213038175,-500.0,0.00019178,2]
[330255356,1719213038190,-266.767742,0.00019178,2]
[330255357,1719213038199,-343.79879192,0.00019178,2]
[330255358,1719213038209,-504.74486245,0.00019178,2]
[330255359,1719213038219,-500.0,0.00019178,2]
[330255360,1719213038228,-500.0,0.00019178,2]
[330255361,1719213038242,-500.0,0.00019178,2]
[330255362,1719213038251,-500.0,0.00019178,2]
[330255363,1719213038263,-216.685899,0.00019178,2]
[330255364,1719213038273,-500.0,0.00019178,2]